bitfinex/quotes_SOLUSD_20240717
["timestamp","ask_amount","ask_price","bid_price","bid_amount"]
[1721251288731,1.60258435,156.01,155.96,6.4117]
[1721251289356,28.01199617,156.02,155.96,6.4117]
[1721251290055,28.01199617,156.02,155.95,16.03]
[1721251290056,26.4094,156.02,155.97,6.4114]
[1721251290552,8.01160544,156.03,155.97,6.4114]
[1721251290745,8.01160544,156.03,155.98,1.28200282]
[1721251291765,8.01160544,156.03,155.97,6.4114]
[1721251291933,20.0,156.02,155.97,6.4114]
[1721251293334,20.0,156.02,155.98,1.28197061]
[1721251294058,20.0,156.02,155.97,6.4114]
[1721251295762,26.4094,156.02,155.97,6.4114]
[1721251297139,8.01231118,156.01,155.96,6.4117]
[1721251297357,6.4095,156.02,155.96,6.4117]
[1721251297561,1.60264266,156.01,155.96,6.4117]
[1721251297860,1.60264266,156.01,155.97,6.4114]
[1721251298237,1.60257849,156.02,155.97,6.4114]
[1721251298437,21.60257849,156.02,155.97,6.4114]
[1721251303964,1.60252437,156.03,155.98,1.2820195]
[1721251304164,9.88732437,156.04,155.99,7.69221695]
[1721251304364,20.0,156.03,155.99,6.4103]
[1721251306567,20.0,156.03,155.98,6.4109]
[1721251307550,1.60251579,156.02,155.98,6.4109]
[1721251309270,21.60249313,156.03,155.98,6.4109]
[1721251316155,20.0,156.03,155.99,17.30791783]
[1721251316360,7.2245914,156.05,155.99,23.71841783]
[1721251316561,21.60235095,156.04,155.99,23.71841783]
[1721251316762,21.60235095,156.04,156.0,6.4102]
[1721251317274,21.60235095,156.04,155.99,23.71841783]
[1721251318051,20.0,156.04,155.99,22.4364]
[1721251318454,6.4091,156.03,155.98,21.772]
[1721251318660,1.6024499,156.02,155.98,15.6737]
[1721251318862,1.60257614,156.01,155.97,6.4112]
[1721251319078,1.60257614,156.01,155.95,16.0302]
[1721251319378,22.41879531,156.05,155.95,16.0302]
[1721251319557,1.60254633,156.04,155.97,16.0283]
[1721251319961,8.2848,156.03,155.93,15.7559]
[1721251320178,6.4107,155.99,155.93,22.1689]
[1721251320356,21.6030119,155.98,155.93,6.413]
[1721251320780,21.6030119,155.98,155.91,16.0344]
[1721251320956,1.6030119,155.98,155.91,16.0344]
[1721251321163,6.4115,155.97,155.91,22.4483]
[1721251321374,1.60320414,155.96,155.91,22.4483]
[1721251321690,1.6031899,155.95,155.91,22.4483]
[1721251322681,1.60322194,155.96,155.91,22.4483]
[1721251322979,1.60323024,155.95,155.91,22.4483]
[1721251323494,1.60323194,155.96,155.92,6.4135]
[1721251324682,1.60320052,155.95,155.91,22.4482]
[1721251325655,21.60325457,155.97,155.91,22.4482]
[1721251327079,21.60325457,155.97,155.92,6.4135]
[1721251327283,28.01465457,155.97,155.91,22.4482]
[1721251327976,21.60325457,155.97,155.92,6.4135]
[1721251328151,6.4127,155.94,155.88,6.4149]
[1721251328352,21.60365407,155.93,155.88,6.4149]
[1721251328576,1.60364743,155.92,155.88,6.4149]
[1721251329284,1.60364743,155.92,155.87,22.4538]
[1721251331975,1.60364743,155.92,155.84,16.0417]
[1721251332182,6.4142,155.91,155.85,6.4162]
[1721251332360,21.60395128,155.9,155.85,6.4162]
[1721251332565,1.60405458,155.89,155.84,22.4584]
[1721251333994,1.60405458,155.89,155.84,16.0417]
[1721251334371,1.60405458,155.89,155.84,22.4584]
[1721251335765,8.01875458,155.89,155.84,16.0417]
[1721251335978,20.0,155.88,155.84,16.0417]
[1721251336157,1.60413152,155.87,155.84,16.0417]
[1721251336355,1.60413152,155.87,155.83,6.4171]
[1721251336584,1.60413152,155.87,155.82,6.4175]
[1721251338357,8.01983152,155.87,155.81,22.4627]
[1721251338992,20.0,155.86,155.78,37.6749]
[1721251339291,8.02098674,155.85,155.79,6.4186]
[1721251340190,8.02098674,155.85,155.74,6.2671]
[1721251340191,1.60448674,155.85,155.75,16.0512]
[1721251340497,6.4173,155.83,155.77,6.4196]
[1721251340678,28.02262705,155.82,155.76,6.4199]
[1721251340866,20.0,155.81,155.76,6.4199]
[1721251341074,1.6048635,155.8,155.76,6.4199]
[1721251341270,1.60484554,155.79,155.76,6.4199]
[1721251341472,1.60484554,155.79,155.75,22.4716]
[1721251342164,1.60484554,155.79,155.73,21.7812]
[1721251342365,1.60508561,155.8,155.73,15.3602]
[1721251342576,1.60508561,155.8,155.76,6.4201]
[1721251342864,28.2848,155.81,155.76,6.4201]
[1721251342865,1.60483293,155.79,155.76,6.4201]
[1721251343189,1.60483156,155.8,155.75,6.4204]
[1721251343373,1.60483156,155.8,155.74,16.0518]
[1721251343374,1.60496295,155.8,155.74,16.0518]
[1721251343561,1.60496295,155.8,155.77,6.4195]
[1721251343766,1.60483182,155.79,155.74,16.0518]
[1721251343967,1.60483182,155.79,155.75,6.4204]
[1721251344273,1.60483182,155.79,155.74,16.0518]
[1721251344674,1.60483182,155.79,155.75,6.4204]
[1721251344875,1.60490948,155.8,155.75,6.4204]
[1721251345074,1.60491528,155.79,155.75,6.4204]
[1721251345977,1.60491451,155.8,155.75,6.4204]
[1721251346180,8.02341451,155.8,155.74,22.4727]
[1721251346373,1.6050577,155.79,155.75,6.4205]
[1721251346970,1.6050577,155.79,155.76,6.42]
[1721251347370,1.60490629,155.8,155.76,6.42]
[1721251347586,1.60490036,155.79,155.76,6.42]
[1721251347770,1.60490036,155.79,155.75,6.4204]
[1721251348488,1.60490812,155.8,155.75,6.4204]
[1721251348692,1.604955,155.79,155.75,6.4204]
[1721251349392,1.604955,155.79,155.74,22.4726]
[1721251349886,6.4184,155.8,155.74,22.4726]
[1721251350195,1.60500045,155.8,155.74,22.4726]
[1721251350493,1.6050018,155.79,155.74,22.4726]
[1721251350684,1.6050018,155.79,155.75,6.4205]
[1721251351288,1.60499931,155.8,155.76,6.42]
[1721251351483,1.60490598,155.79,155.76,6.42]
[1721251351970,1.60490561,155.8,155.76,6.42]
[1721251352171,1.60490561,155.79,155.76,6.42]
[1721251352379,1.60490524,155.8,155.76,6.42]
[1721251353570,20.0,155.81,155.79,6.4185]
[1721251353775,1.60486446,155.85,155.79,6.4187]
[1721251354091,8.02126446,155.85,155.79,6.4187]
[1721251354591,1.60486446,155.85,155.79,7.70220908]
[1721251354782,1.60486446,155.85,155.79,6.4187]
[1721251354983,1.60486446,155.85,155.82,6.4176]
[1721251355185,1.60486446,155.85,155.8,16.0456]
[1721251355186,1.60486446,155.85,155.81,6.4179]
[1721251355392,1.60486446,155.85,155.8,22.4639]
[1721251355598,8.02126446,155.85,155.8,16.0456]
[1721251356097,8.02126446,155.85,155.79,6.4188]
[1721251356269,20.0,155.84,155.79,6.4188]
[1721251358019,20.0,155.84,155.8,6.4183]
[1721251358180,21.60486446,155.85,155.8,6.4183]
[1721251358802,21.60486446,155.85,155.79,6.4187]
[1721251359682,21.60486446,155.85,155.8,6.4184]
[1721251360586,28.02126446,155.85,155.79,16.0463]
[1721251360787,20.0,155.85,155.8,6.4184]
[1721251360987,20.0,155.85,155.79,16.0463]
[1721251360988,21.60435779,155.85,155.79,22.465]
[1721251362010,21.60435779,155.85,155.8,6.418]
[1721251362306,6.4161,155.86,155.79,22.4651]
[1721251362603,21.60435774,155.85,155.79,22.4651]
[1721251365104,21.60435774,155.85,155.8,6.4184]
[1721251366910,21.60435774,155.85,155.79,22.4651]
[1721251372222,21.60435774,155.85,155.8,6.4184]
[1721251378017,21.60435774,155.85,155.79,16.0463]
[1721251378215,1.60435939,155.84,155.79,22.4651]
[1721251379818,6.4165,155.85,155.79,22.4651]
[1721251380227,6.4161,155.86,155.8,6.4184]
[1721251380443,20.0,155.85,155.8,6.4184]
[1721251380629,21.60435958,155.85,155.8,6.4184]
[1721251386713,6.4174,155.83,155.78,6.4192]
[1721251386931,1.60457716,155.82,155.78,6.4192]
[1721251387139,16.0384,155.88,155.78,6.4192]
[1721251387140,1.60457733,155.84,155.78,6.4192]
[1721251387314,8.02167733,155.84,155.78,6.4192]
[1721251387726,6.4173,155.83,155.77,6.4196]
[1721251387913,1.6045846,155.82,155.78,6.4192]
[1721251388960,1.60460196,155.83,155.78,6.4192]
[1721251389106,1.60458894,155.82,155.78,6.4192]
[1721251390246,1.60459031,155.83,155.79,6.4188]
[1721251390537,1.60458995,155.82,155.76,16.0495]
[1721251390743,20.0,155.87,155.77,6.4196]
[1721251390744,6.4173,155.83,155.77,6.4196]
[1721251390924,21.60472262,155.82,155.77,6.4195]
[1721251391630,21.60472262,155.82,155.78,6.4192]
[1721251391810,1.60472262,155.82,155.77,6.4196]
[1721251392943,14.7034,155.8,155.73,16.0533]
[1721251393114,1.60512517,155.79,155.73,22.4743]
[1721251393450,28.02402517,155.79,155.73,16.0533]
[1721251394155,28.02402517,155.79,155.73,22.4743]
[1721251394340,46.60512579,155.78,155.69,9.64302622]
[1721251394542,6.4207,155.75,155.69,6.4228]
[1721251394851,1.60551577,155.74,155.7,6.4225]
[1721251395054,1.60551319,155.73,155.7,6.4225]
[1721251396148,1.60551536,155.74,155.7,6.4225]
[1721251396390,1.60551616,155.73,155.7,6.4225]
[1721251396548,1.60551616,155.73,155.68,16.0578]
[1721251396549,1.60551616,155.73,155.69,6.4229]
[1721251397427,1.60551602,155.74,155.69,6.4229]
[1721251397621,1.60551602,155.73,155.69,6.4229]
[1721251398561,8.02641678,155.74,155.68,22.4811]
[1721251398747,1.60551613,155.73,155.68,22.4811]
[1721251399252,1.60551613,155.73,155.69,6.423]
[1721251399754,8.02641618,155.74,155.68,22.4811]
[1721251400153,1.60551621,155.73,155.68,22.4811]
[1721251400462,1.60551621,155.73,155.66,22.373]
[1721251400463,21.60551621,155.73,155.66,22.373]
[1721251400751,20.0,155.73,155.66,22.373]
[1721251400938,20.0,155.76,155.66,22.373]
[1721251401144,1.6056408,155.75,155.66,22.373]
[1721251401457,6.4214,155.73,155.67,6.4237]
[1721251404469,6.4218,155.72,155.66,28.7971]
[1721251404767,1.60579221,155.71,155.67,6.4238]
[1721251405633,6.4214,155.73,155.67,6.4238]
[1721251406546,6.4222,155.71,155.65,22.4856]
[1721251406758,21.60593994,155.7,155.65,22.4856]
[1721251407152,21.60593994,155.7,155.62,22.4764]
[1721251407360,20.0,155.69,155.62,22.4764]
[1721251407546,6.424,155.67,155.62,22.4764]
[1721251407764,1.60628548,155.66,155.62,28.9022]
[1721251408138,1.60628548,155.66,155.62,22.4764]
[1721251408548,6.4241,155.67,155.62,22.4764]
[1721251408750,1.60627773,155.66,155.62,28.9022]
[1721251409979,8.03011485,155.67,155.62,28.9022]
[1721251410339,8.03011485,155.67,155.62,30.1872362]
[1721251410554,1.60631485,155.67,155.62,28.9022]
[1721251411764,1.60631485,155.67,155.63,6.4254]
[1721251411937,6.4235,155.68,155.62,22.4764]
[1721251412133,1.60624015,155.67,155.62,22.4764]
[1721251412349,1.60624015,155.67,155.62,28.9021]
[1721251413559,1.60624015,155.67,155.63,6.4254]
[1721251413743,21.60618355,155.68,155.63,6.4254]
[1721251413944,1.60618672,155.67,155.63,6.4254]
[1721251414151,20.0,155.68,155.64,6.4249]
[1721251414345,1.60608045,155.67,155.63,22.4887]
[1721251414848,6.4234,155.68,155.63,16.0633]
[1721251415050,1.60618794,155.67,155.63,16.0633]
[1721251418759,1.60618794,155.67,155.63,22.4886]
[1721251418943,6.4231,155.69,155.63,22.4886]
[1721251418944,21.6061283,155.68,155.63,22.4886]
[1721251419146,1.60611734,155.67,155.63,22.4886]
[1721251419851,1.60613143,155.67,155.63,22.4886]
[1721251420166,1.60613143,155.67,155.63,16.0633]
[1721251420354,1.60613143,155.67,155.63,22.4887]
[1721251420968,1.60613143,155.67,155.63,16.0633]
[1721251422065,1.60613143,155.67,155.63,22.4886]
[1721251423171,1.60613143,155.67,155.63,16.0633]
[1721251424085,26.4234,155.68,155.63,22.4887]
[1721251426546,20.0,155.68,155.64,6.4249]
[1721251426754,28.02929948,155.68,155.63,16.0633]
[1721251427059,20.0,155.68,155.63,22.4886]
[1721251427277,21.60600942,155.68,155.63,22.4886]
[1721251427572,28.02940942,155.68,155.63,22.4886]
[1721251427765,26.4234,155.68,155.63,22.4886]
[1721251428165,20.0,155.68,155.63,22.4886]
[1721251429592,26.4234,155.68,155.63,22.4886]
[1721251430285,20.0,155.68,155.63,22.4886]
[1721251430573,28.02953406,155.68,155.63,16.0633]
[1721251430781,26.4236,155.68,155.63,16.0633]
[1721251431454,26.4236,155.68,155.62,28.9021]
[1721251431455,8.03001153,155.67,155.62,22.4764]
[1721251431752,1.60601153,155.67,155.62,22.4764]
[1721251432074,8.02991153,155.67,155.62,22.4764]
[1721251432277,6.4239,155.67,155.62,22.4764]
[1721251433462,6.4235,155.68,155.62,28.9022]
[1721251433780,6.4235,155.68,155.63,6.4253]
[1721251436272,6.4235,155.68,155.62,38.5407]
[1721251436476,6.4235,155.68,155.62,44.9665]
[1721251438497,6.4238,155.67,155.62,44.9665]
[1721251439777,6.4231,155.69,155.64,6.4249]
[1721251439977,20.0,155.68,155.63,51.4253]
[1721251440176,28.0294154,155.68,155.63,6.4253]
[1721251440390,28.0294154,155.68,155.62,44.9664]
[1721251440391,26.4235,155.68,155.62,44.9664]
[1721251444283,1.60609334,155.67,155.62,22.4764]
[1721251444483,6.4245,155.66,155.6,6.4264]
[1721251444665,8.03081289,155.66,155.6,6.4264]
[1721251444985,6.4245,155.66,155.6,6.4264]
[1721251445877,1.60631527,155.65,155.6,6.4264]
[1721251446085,24.513,155.71,155.59,16.067]
[1721251446086,1.60631547,155.64,155.59,16.067]
[1721251446265,6.4247,155.65,155.59,16.067]
[1721251446588,1.60644472,155.66,155.6,7.71175577]
[1721251446764,1.60644472,155.66,155.6,6.4266]
[1721251446970,8.03094472,155.66,155.6,6.4266]
[1721251447168,8.03094472,155.66,155.61,1.28507319]
[1721251447583,8.03094472,155.66,155.6,6.4266]
[1721251448183,6.4246,155.65,155.6,6.4266]
[1721251452172,6.4246,155.65,155.6,6.4266]
[1721251452762,1.60630391,155.64,155.59,22.494]
[1721251453094,8.03067792,155.66,155.6,1.28510233]
[1721251453278,8.03067792,155.66,155.6,6.4265]
[1721251453475,1.60637792,155.66,155.61,6.4261]
[1721251454480,28.0301391,155.67,155.61,6.4261]
[1721251455305,1.6062423,155.68,155.62,1.28483453]
[1721251455470,8.0296423,155.68,155.61,16.0654]
[1721251455671,8.0296423,155.68,155.62,6.4257]
[1721251456068,6.4234,155.68,155.62,6.4257]
[1721251457275,8.02944674,155.68,155.62,6.4257]
[1721251457585,6.4234,155.68,155.63,1.28483758]
[1721251457782,6.4234,155.68,155.62,6.4257]
[1721251458779,6.4234,155.68,155.63,6.4254]
[1721251458986,6.4231,155.69,155.63,6.4254]
[1721251459199,1.60604698,155.7,155.63,16.0632]
[1721251459387,1.60604698,155.7,155.65,6.4243]
[1721251459593,1.60604698,155.7,155.63,16.0632]
[1721251459594,8.02868706,155.7,155.64,6.4249]
[1721251459919,6.423,155.69,155.64,6.4249]
[1721251460205,6.4226,155.7,155.64,6.4249]
[1721251463013,1.60590139,155.69,155.64,6.4249]
[1721251463322,8.02890139,155.69,155.64,6.4249]
[1721251463819,1.60590139,155.69,155.64,6.4249]
[1721251464123,6.4227,155.7,155.64,6.4249]
[1721251464413,6.4227,155.7,155.65,6.4245]
[1721251464619,8.02860737,155.7,155.65,6.4245]
[1721251464793,8.02860737,155.7,155.64,6.4249]
[1721251465525,1.60592201,155.69,155.64,6.4249]
[1721251465813,1.60592201,155.69,155.65,6.4246]
[1721251466300,1.60592201,155.69,155.64,6.4249]
[1721251467221,1.60592201,155.69,155.65,6.4245]
[1721251467890,1.60593297,155.7,155.65,6.4245]
[1721251468091,8.02853297,155.7,155.65,6.4245]
[1721251468416,8.02853297,155.7,155.64,6.4249]
[1721251468919,1.60600815,155.69,155.64,6.4249]
[1721251469128,1.60600815,155.69,155.65,6.4246]
[1721251469288,1.60600815,155.69,155.66,6.4242]
[1721251469693,21.60590732,155.71,155.66,6.4242]
[1721251469910,1.60590709,155.7,155.66,6.4242]
[1721251470320,21.60591884,155.71,155.69,6.423]
[1721251470494,1.60591884,155.71,155.67,22.4821]
[1721251471922,1.60580285,155.72,155.68,1.28464228]
[1721251472096,1.60560252,155.73,155.69,6.423]
[1721251472503,1.60560252,155.73,155.67,16.0587]
[1721251472724,6.4208,155.75,155.69,6.4229]
[1721251473026,1.60549152,155.74,155.69,6.4229]
[1721251473194,1.60548323,155.73,155.69,6.4229]
[1721251473726,21.60548038,155.74,155.69,6.4229]
[1721251474116,1.60542623,155.75,155.69,16.0568]
[1721251474323,1.60542623,155.75,155.71,6.4218]
[1721251474825,1.60536376,155.76,155.71,6.4218]
[1721251475504,1.60536376,155.76,155.72,6.4217]
[1721251475700,20.0,155.76,155.72,6.4217]
[1721251476009,1.60522675,155.77,155.73,6.4213]
[1721251476618,1.6051362,155.78,155.71,16.0549]
[1721251476912,1.6051362,155.78,155.72,6.4217]
[1721251476913,8.0245362,155.78,155.72,6.4217]
[1721251477832,1.60513678,155.77,155.72,6.4217]
[1721251478505,6.4194,155.78,155.72,6.4217]
[1721251479230,1.60502651,155.77,155.72,6.4217]
[1721251479429,6.4194,155.78,155.72,6.4217]
[1721251480022,1.60505623,155.77,155.72,6.4217]
[1721251480232,1.60506171,155.77,155.72,6.4217]
[1721251481204,6.4207,155.75,155.69,6.4227]
[1721251481428,6.4207,155.75,155.7,6.4225]
[1721251481608,6.4202,155.76,155.7,6.4225]
[1721251481931,1.60526241,155.75,155.7,22.4786]
[1721251482123,21.60533639,155.78,155.7,22.4786]
[1721251482304,6.4202,155.76,155.7,22.4786]
[1721251482625,1.60529934,155.75,155.7,22.4786]
[1721251484722,8.02579934,155.75,155.7,22.4786]
[1721251484924,1.60549509,155.74,155.7,22.4786]
[1721251485425,1.60549509,155.74,155.71,6.4221]
[1721251485632,6.4197,155.77,155.71,6.4221]
[1721251485633,1.60532961,155.76,155.71,6.4221]
[1721251485930,1.60532961,155.76,155.72,6.4215]
[1721251486629,26.4193,155.78,155.72,6.4215]
[1721251486630,1.60519535,155.77,155.72,6.4215]
[1721251486819,26.4193,155.78,155.72,6.4215]
[1721251486820,1.60519445,155.76,155.72,6.4215]
[1721251487520,1.60519533,155.77,155.72,6.4215]
[1721251487826,1.60519533,155.77,155.73,6.4212]
[1721251488629,21.60511313,155.78,155.74,16.0516]
[1721251488840,28.02349991,155.8,155.74,22.4725]
[1721251489015,1.60499916,155.79,155.74,22.4725]
[1721251489629,8.02389916,155.79,155.74,22.4725]
[1721251489938,20.0,155.78,155.74,16.0516]
[1721251490514,20.0,155.78,155.73,6.4212]
[1721251490709,26.4193,155.78,155.73,6.4212]
[1721251490914,26.4193,155.78,155.72,6.4216]
[1721251491337,26.4193,155.78,155.73,6.4213]
[1721251492930,26.4193,155.78,155.72,6.4216]
[1721251493653,26.4193,155.78,155.72,7.70560171]
[1721251494218,26.4193,155.78,155.72,6.4216]
[1721251494948,26.4193,155.78,155.73,1.2839983]
[1721251495240,26.4193,155.78,155.73,7.7052983]
[1721251495436,26.4193,155.78,155.73,1.2839983]
[1721251495819,6.419,155.79,155.73,51.4212]
[1721251496232,6.4193,155.78,155.73,51.4212]
[1721251497144,6.4194,155.78,155.71,16.0546]
[1721251497337,6.4194,155.78,155.72,45.0]
[1721251497531,6.4194,155.78,155.72,51.4216]
[1721251500645,6.4207,155.75,155.69,6.4228]
[1721251500942,6.4198,155.77,155.71,6.4218]
[1721251501126,6.4197,155.77,155.7,16.0561]
[1721251501443,1.60506511,155.76,155.7,16.0561]
[1721251501632,1.60532173,155.79,155.7,16.0561]
[1721251501836,6.4205,155.75,155.7,16.0561]
[1721251503336,6.4202,155.76,155.7,22.4786]
[1721251503541,1.60532051,155.75,155.7,22.4786]
[1721251505043,8.02491981,155.78,155.7,16.0561]
[1721251505234,26.42,155.77,155.71,6.422]
[1721251505435,1.60519999,155.76,155.71,6.422]
[1721251506744,20.0,155.77,155.72,6.4217]
[1721251506945,21.60511651,155.77,155.72,6.4217]
[1721251507548,1.6051243,155.76,155.71,6.422]
[1721251507744,8.0253243,155.76,155.7,22.4786]
[1721251508052,1.60532528,155.75,155.7,22.4786]
[1721251508251,1.60532528,155.75,155.71,1.28426023]
[1721251508444,1.6053137,155.75,155.71,1.28426023]
[1721251508626,1.6053137,155.75,155.7,22.4786]
[1721251509444,6.4202,155.76,155.7,22.4786]
[1721251510346,6.4202,155.76,155.71,1.28420698]
[1721251510650,6.4202,155.76,155.7,22.4786]
[1721251511228,6.4196,155.78,155.7,16.0561]
[1721251511548,20.0,155.77,155.71,45.0]
[1721251511750,8.02431871,155.79,155.71,45.0]
[1721251512047,1.60499556,155.78,155.71,45.0]
[1721251512237,1.60499556,155.78,155.73,6.4213]
[1721251512832,8.02439556,155.78,155.72,6.4217]
[1721251513033,1.60506963,155.77,155.72,6.4217]
[1721251513352,1.605046,155.8,155.72,16.0534]
[1721251513525,8.02384136,155.79,155.73,6.4212]
[1721251513731,6.4193,155.78,155.73,6.4212]
[1721251514628,8.02394136,155.79,155.73,6.4212]
[1721251514850,1.6049843,155.78,155.73,6.4212]
[1721251516647,1.6049843,155.78,155.72,16.0534]
[1721251516648,8.02403151,155.79,155.74,6.4209]
[1721251517240,1.60503151,155.79,155.74,6.4209]
[1721251517646,21.60503151,155.79,155.74,6.4209]
[1721251519956,28.02393151,155.79,155.73,6.4212]
[1721251520250,20.0,155.79,155.74,7.7044344]
[1721251520435,20.0,155.79,155.74,52.7044344]
[1721251521148,26.4189,155.79,155.74,51.4205]
[1721251522765,1.60480572,155.82,155.74,61.0517]
[1721251522931,1.60471371,155.81,155.74,61.0517]
[1721251523259,6.4185,155.8,155.74,61.0517]
[1721251523447,6.4185,155.8,155.74,67.4725]
[1721251524449,6.4185,155.8,155.75,6.4204]
[1721251526152,6.418,155.82,155.76,6.4199]
[1721251526353,21.60471207,155.81,155.76,6.4199]
[1721251526738,28.02271207,155.81,155.76,6.4199]
[1721251526956,26.418,155.81,155.76,6.4199]
[1721251528045,26.418,155.81,155.75,6.4204]
[1721251531042,1.60471194,155.84,155.76,16.0497]
[1721251531249,28.02161194,155.84,155.78,6.419]
[1721251531451,6.4173,155.83,155.77,51.4196]
[1721251531754,26.4173,155.83,155.77,6.4196]
[1721251531958,20.0,155.83,155.78,7.70276733]
[1721251532463,26.4173,155.83,155.78,7.70276733]
[1721251538862,26.4173,155.83,155.78,6.4192]
[1721251539073,26.4173,155.83,155.78,7.70270543]
[1721251549285,26.4173,155.83,155.78,1.28350543]
[1721251549480,26.4173,155.83,155.78,46.28350543]
[1721251553385,1.60439046,155.82,155.75,6.4203]
[1721251554263,1.60473092,155.81,155.75,6.4203]
[1721251554463,8.02312673,155.8,155.73,38.1182]
[1721251554671,1.60492586,155.79,155.73,44.5395]
[1721251554889,6.4189,155.79,155.73,38.0003]
[1721251555182,1.60495184,155.78,155.74,6.4208]
[1721251557173,1.6049215,155.79,155.74,6.4208]
[1721251558789,1.6049215,155.79,155.75,6.4205]
[1721251560083,1.60487611,155.8,155.75,6.4205]
[1721251560391,1.60487551,155.79,155.75,6.4205]
[1721251561180,1.60487662,155.8,155.75,6.4205]
[1721251561680,1.60487554,155.79,155.75,6.4205]
[1721251562597,1.6048783,155.8,155.75,6.4205]
[1721251562787,1.60487569,155.79,155.75,6.4205]
[1721251562974,1.60487569,155.79,155.74,6.4207]
[1721251564783,8.02357217,155.8,155.75,6.4203]
[1721251564988,1.60497217,155.79,155.75,6.4203]
[1721251565174,1.60497217,155.79,155.74,6.4208]
[1721251566384,1.60488612,155.8,155.75,6.4203]
[1721251566692,1.60487428,155.79,155.75,6.4203]
[1721251566897,1.60487428,155.79,155.74,6.4207]
[1721251567097,8.02377428,155.79,155.74,6.4207]
[1721251567492,1.6050145,155.78,155.74,6.4207]
[1721251567792,6.4186,155.8,155.74,6.4207]
[1721251567981,1.60498012,155.79,155.74,6.4207]
[1721251568590,1.60498012,155.79,155.75,6.4204]
[1721251569817,8.0235158,155.8,155.75,6.4204]
[1721251570796,1.60487266,155.79,155.75,6.4204]
[1721251572097,1.60487266,155.79,155.74,6.4208]
[1721251573711,1.60487266,155.79,155.75,6.4204]
[1721251580612,1.60487266,155.79,155.73,16.0528]
[1721251581230,6.4193,155.78,155.73,16.0528]
[1721251581714,6.4198,155.77,155.71,6.4221]
[1721251581913,6.4198,155.77,155.72,45.0]
[1721251583592,6.4201,155.76,155.71,6.4221]
[1721251585129,6.421,155.74,155.69,31.22327913]
[1721251585301,6.421,155.74,155.69,21.5796]
[1721251587806,6.4215,155.73,155.69,21.5796]
[1721251587999,6.4215,155.73,155.67,22.4824]
[1721251588188,6.4215,155.73,155.66,26.18687913]
[1721251588189,6.4218,155.72,155.68,45.0]
[1721251588392,6.4218,155.72,155.67,45.0]
[1721251589199,16.0527,155.74,155.66,16.5432]
[1721251589422,21.60565249,155.73,155.66,16.5432]
[1721251590403,6.4226,155.7,155.66,16.5432]
[1721251593024,6.4233,155.69,155.64,16.0618]
[1721251593207,6.4237,155.68,155.65,45.0]
[1721251593407,16.0571,155.7,155.62,16.5432]
[1721251593613,21.60606697,155.69,155.62,16.5432]
[1721251594499,6.4245,155.66,155.62,16.5432]
[1721251595433,6.4245,155.66,155.61,22.3261]
[1721251595730,6.4245,155.66,155.62,45.0]
[1721251596435,8.03068201,155.65,155.59,6.427]
[1721251596601,6.4251,155.64,155.59,6.427]
[1721251596802,6.4251,155.64,155.58,39.0388]
[1721251597818,6.4251,155.64,155.59,45.0]
[1721251602029,1.60633381,155.67,155.59,45.0]
[1721251602030,6.4255,155.63,155.59,45.0]
[1721251606740,6.4259,155.62,155.59,45.0]
[1721251607745,6.4259,155.62,155.57,6.2611]
[1721251607947,6.4264,155.61,155.58,45.0]
[1721251608547,6.4264,155.61,155.57,45.0]
[1721251613149,6.4264,155.61,155.56,45.0]
[1721251614644,6.4267,155.6,155.56,45.0]
[1721251614948,6.4271,155.59,155.56,45.0]
[1721251615359,6.4271,155.59,155.55,45.0]
[1721251618826,6.4271,155.59,155.54,45.6283742]
[1721251619263,6.4271,155.59,155.54,52.0573742]
[1721251623464,6.4267,155.6,155.55,6.4286]
[1721251623647,6.4267,155.6,155.56,45.0]
[1721251624944,6.4267,155.6,155.55,45.0]
[1721251625865,6.4272,155.59,155.55,45.0]
[1721251632561,1.60660953,155.62,155.55,51.4286]
[1721251632749,6.4269,155.6,155.55,51.4286]